lending/lending_fUSD_20250808
["ID","MTS","AMOUNT","RATE_DAILY","PERIOD"]
[377928831,1754614243152,-2478.01,0.00019726,2]
[377928833,1754614243162,-1838.62,0.00019726,2]
[377928834,1754614243172,-400.0,0.00019726,2]
[377928836,1754614243184,-633.66,0.00019726,2]
[377928837,1754614243194,-400.0,0.00019726,2]
[377928840,1754614243203,-2866.87,0.00019726,2]
[377928841,1754614243213,-400.0,0.00019726,2]
[377928844,1754614243223,-995.05,0.00019726,2]
[377928846,1754614243232,-400.0,0.00019726,2]
[377928849,1754614243242,-400.0,0.00019726,2]
[377928851,1754614243255,-569.3,0.00019726,2]
[377928854,1754614243264,-400.0,0.00019726,2]
[377928857,1754614243274,-627.88,0.00019726,2]
[377928859,1754614243283,-400.0,0.00019726,2]
[377928861,1754614243293,-400.0,0.00019726,2]
[377928864,1754614243303,-400.0,0.00019726,2]
[377928866,1754614243313,-400.0,0.00019726,2]
[377928869,1754614243323,-1915.69,0.00019726,2]
[377928872,1754614243333,-400.0,0.00019726,2]
[377928875,1754614243343,-1024.44,0.00019726,2]
[377928877,1754614243352,-452.77,0.00019726,2]
[377928880,1754614243362,-755.68,0.00019726,2]
[377928882,1754614243371,-161.87,0.00019726,2]
[377928884,1754614243380,-400.0,0.00019726,2]
[377928887,1754614243392,-400.0,0.00019726,2]
[377928889,1754614243404,-342.57249164,0.00019726,2]
[377928892,1754614243414,-500.0,0.00019773,2]
[377928894,1754614243424,-500.0,0.00019845,2]
[377928897,1754614243433,-1000.0,0.00019845,4]
[377928900,1754614243443,-250.0,0.00019845,2]
[377928902,1754614243453,-420.0,0.00019877,2]
[377928906,1754614243463,-500.0,0.000199,7]
[377928908,1754614243472,-500.0,0.00019925,2]
[377928911,1754614243481,-1000.0,0.00019925,4]
[377928914,1754614243491,-250.0,0.00019925,2]
[377928916,1754614243502,-173.68,0.00019941,2]
[377928920,1754614243511,-500.0,0.00019973,2]
[377928922,1754614243521,-1680.0,0.00019974,2]
[377928925,1754614243530,-400.0,0.00019999,2]
[377928926,1754614243539,-400.0,0.00019999,2]
[377928929,1754614243548,-649.34,0.00019999,2]
[377928932,1754614243558,-412.44,0.00019999,2]
[377928935,1754614243567,-1496.19,0.00019999,2]
[377928937,1754614243577,-400.0,0.00019999,2]
[377928940,1754614243586,-400.0,0.00019999,2]
[377928943,1754614243596,-400.0,0.00019999,2]
[377928946,1754614243606,-400.0,0.00019999,2]
[377928947,1754614243615,-1160.41,0.00019999,2]
[377928950,1754614243626,-502.75,0.00019999,2]
[377928952,1754614243635,-400.0,0.00019999,2]
[377928954,1754614243645,-1559.58,0.00019999,2]
[377928956,1754614243655,-738.48,0.00019999,2]
[377928960,1754614243665,-1144.25,0.00019999,2]
[377928963,1754614243675,-1207.97,0.00019999,2]
[377928966,1754614243684,-510.81,0.00019999,2]
[377928968,1754614243694,-400.0,0.00019999,2]
[377928971,1754614243703,-512.85,0.00019999,2]
[377928973,1754614243712,-3096.84,0.00019999,2]
[377928976,1754614243722,-400.0,0.00019999,2]
[377928980,1754614243732,-400.0,0.00019999,2]
[377928982,1754614243742,-400.0,0.00019999,2]
[377928986,1754614243754,-400.0,0.00019999,2]
[377928989,1754614243764,-400.0,0.00019999,2]
[377928992,1754614243773,-400.0,0.00019999,2]
[377928995,1754614243783,-400.0,0.00019999,2]
[377928999,1754614243792,-717.49,0.00019999,2]
[377929003,1754614243802,-791.17,0.00019999,2]
[377929007,1754614243812,-453.61,0.00019999,2]
[377929012,1754614243821,-2279.55,0.00019999,2]
[377929016,1754614243830,-743.0,0.00019999,2]
[377929021,1754614243840,-400.0,0.00019999,2]
[377929027,1754614243849,-833.52,0.00019999,2]
[377929031,1754614243858,-1092.65,0.00019999,2]
[377929036,1754614243868,-400.0,0.00019999,2]
[377929040,1754614243878,-1210.68,0.00019999,2]
[377929044,1754614243887,-400.0,0.00019999,2]
[377929048,1754614243897,-900.29,0.00019999,2]
[377929052,1754614243907,-400.0,0.00019999,2]
[377929057,1754614243917,-757.08,0.00019999,2]
[377929061,1754614243926,-400.0,0.00019999,2]
[377929065,1754614243937,-400.0,0.00019999,2]
[377929069,1754614243948,-400.0,0.00019999,2]
[377929072,1754614243958,-602.93,0.00019999,2]
[377929077,1754614243969,-1933.78,0.00019999,2]
[377929081,1754614243978,-400.0,0.00019999,2]
[377929085,1754614243989,-541.11,0.00019999,2]
[377929089,1754614243999,-411.24,0.00019999,2]
[377929092,1754614244009,-400.0,0.00019999,2]
[377929095,1754614244018,-259.1100802,0.00019999,2]
[377929099,1754614244028,-254.59,0.00019999,2]
[377929102,1754614244038,-400.0,0.00019999,2]
[377929105,1754614244048,-400.0,0.00019999,2]
[377929107,1754614244059,-1218.55,0.00019999,2]
[377929109,1754614244068,-400.0,0.00019999,2]
[377929111,1754614244078,-1023.23,0.00019999,2]
[377929113,1754614244088,-400.0,0.00019999,2]
[377929115,1754614244098,-400.0,0.00019999,2]
[377929117,1754614244108,-400.0,0.00019999,2]
[377929119,1754614244118,-400.0,0.00019999,2]
[377929121,1754614244128,-1397.65,0.00019999,2]
[377929123,1754614244137,-400.0,0.00019999,2]
[377929125,1754614244153,-400.0,0.00019999,2]
[377929127,1754614244163,-400.0,0.00019999,2]
[377929129,1754614244172,-400.0,0.00019999,2]
[377929131,1754614244182,-400.0,0.00019999,2]
[377929133,1754614244192,-440.38,0.00019999,2]
[377929135,1754614244202,-1429.25,0.00019999,2]
[377929137,1754614244211,-1014.96,0.00019999,2]
[377929138,1754614244222,-400.0,0.00019999,2]
[377929140,1754614244233,-400.0,0.00019999,2]
[377929142,1754614244243,-433.05610817,0.00019999,2]
[377929144,1754614244254,-400.0,0.00019999,2]
[377929146,1754614244264,-1063.03,0.00019999,2]
[377929148,1754614244274,-536.63,0.00019999,2]
[377929150,1754614244283,-400.0,0.00019999,2]
[377929152,1754614244293,-1603.28,0.00019999,2]
[377929154,1754614244302,-400.0,0.00019999,2]
[377929156,1754614244312,-400.0,0.00019999,2]
[377929158,1754614244322,-498.26,0.00019999,2]
[377929160,1754614244331,-1163.02,0.00019999,2]
[377929162,1754614244343,-170.85,0.00019999,2]
[377929164,1754614244355,-481.01,0.00019999,2]
[377929166,1754614244365,-183.731567,0.00019999,2]
[377929168,1754614244374,-514.78,0.00019999,2]
[377929170,1754614244384,-400.0,0.00019999,2]
[377929172,1754614244393,-400.0,0.00019999,2]
[377929174,1754614244402,-973.9,0.00019999,2]
[377929176,1754614244412,-1809.74,0.00019999,2]
[377929177,1754614244422,-175.652791,0.00019999,2]
[377929180,1754614244431,-899.62,0.00019999,2]
[377929181,1754614244441,-960.68,0.00019999,2]
[377929183,1754614244450,-777.43,0.00019999,2]
[377929186,1754614244461,-400.0,0.00019999,2]
[377929187,1754614244470,-400.0,0.00019999,2]
[377929189,1754614244480,-400.0,0.00019999,2]
[377929219,1754614244489,-400.0,0.00019999,2]
[377929221,1754614244764,-1000.0,0.00019999,2]
[377929223,1754614244774,-270.24,0.00019999,2]
[377929226,1754614244784,-400.0,0.00019999,2]
[377929228,1754614244794,-715.39,0.00019999,2]
[377929230,1754614244804,-3151.2,0.00019999,2]
[377929232,1754614244814,-400.0,0.00019999,2]
[377929234,1754614244823,-715.1,0.00019999,2]
[377929236,1754614244833,-400.0,0.00019999,2]
[377929238,1754614244843,-400.0,0.00019999,2]
[377929240,1754614244853,-400.0,0.00019999,2]
[377929241,1754614244863,-1570.29,0.00019999,2]
[377929244,1754614244874,-565.95,0.00019999,2]
[377929246,1754614244884,-451.58,0.00019999,2]
[377929247,1754614244895,-400.0,0.00019999,2]
[377929249,1754614244905,-400.0,0.00019999,2]
[377929252,1754614244915,-786.14,0.00019999,2]
[377929254,1754614244926,-666.42,0.00019999,2]
[377929256,1754614244936,-1433.09,0.00019999,2]
[377929258,1754614244946,-194.24,0.00019999,2]
[377929260,1754614244956,-1047.76,0.00019999,2]
[377929262,1754614244966,-400.0,0.00019999,2]
[377929264,1754614244976,-400.0,0.00019999,2]
[377929266,1754614244986,-459.25,0.00019999,2]
[377929268,1754614244996,-400.0,0.00019999,2]
[377929270,1754614245009,-400.0,0.0002,2]
[377929272,1754614245019,-400.0,0.0002,2]
[377929274,1754614245030,-400.0,0.0002,2]
[377929276,1754614245040,-400.0,0.0002,2]
[377929278,1754614245050,-1357.58,0.0002,2]
[377929280,1754614245060,-375.38340655,0.0002,2]
[377929282,1754614245070,-400.0,0.0002,2]
[377929284,1754614245080,-400.0,0.0002,2]
[377929286,1754614245089,-1208.7,0.0002,2]
[377929288,1754614245103,-400.0,0.0002,2]
[377929290,1754614245114,-571.32,0.0002,2]
[377929292,1754614245125,-400.0,0.0002,2]
[377929294,1754614245136,-507.25838607,0.0002,2]
[377929296,1754614245148,-722.94,0.0002,2]
[377929298,1754614245160,-400.0,0.0002,2]
[377929300,1754614245171,-400.0,0.0002,2]
[377929303,1754614245185,-400.0,0.0002,2]
[377929304,1754614245195,-440.35,0.0002,2]
[377929307,1754614245205,-2803.03,0.0002,2]
[377929309,1754614245215,-1112.97,0.0002,2]
[377929311,1754614245226,-1702.91,0.0002,2]
[377929313,1754614245237,-400.0,0.0002,2]
[377929315,1754614245246,-563.63,0.0002,2]
[377929317,1754614245258,-400.0,0.0002,2]
[377929318,1754614245269,-535.07,0.0002,2]
[377929321,1754614245279,-798.53,0.0002,2]
[377929323,1754614245290,-636.33,0.0002,2]
[377929325,1754614245300,-400.0,0.0002,2]
[377929327,1754614245310,-400.0,0.0002,2]
[377929329,1754614245320,-1301.51,0.0002,2]
[377929331,1754614245330,-501.71,0.0002,2]
[377929333,1754614245340,-400.0,0.0002,2]
[377929335,1754614245350,-291.11330482,0.0002,2]
[377929337,1754614245361,-400.0,0.0002,2]
[377929339,1754614245370,-400.0,0.0002,2]
[377929341,1754614245380,-400.0,0.0002,2]
[377929343,1754614245390,-400.0,0.0002,2]
[377929345,1754614245399,-400.0,0.0002,2]
[377929347,1754614245409,-648.77,0.0002,2]
[377929349,1754614245419,-400.0,0.0002,2]
[377929351,1754614245429,-1110.84,0.0002,2]
[377929353,1754614245439,-1082.24,0.0002,2]
[377929355,1754614245449,-672.61,0.0002,2]
[377929357,1754614245460,-400.0,0.0002,2]
[377929359,1754614245469,-2850.84,0.0002,2]
[377929361,1754614245479,-1783.35,0.0002,2]
[377929363,1754614245496,-819.83,0.0002,2]
[377929365,1754614245509,-400.0,0.0002,2]
[377929367,1754614245522,-514.56,0.0002,2]
[377929369,1754614245532,-253.62,0.0002,2]
[377929371,1754614245542,-400.0,0.0002,2]
[377929373,1754614245552,-400.0,0.0002,2]
[377929375,1754614245562,-400.0,0.0002,2]
[377929377,1754614245572,-774.82,0.0002,2]
[377929379,1754614245582,-400.0,0.0002,2]
[377929381,1754614245592,-400.0,0.0002,2]
[377929383,1754614245601,-400.0,0.0002,2]
[377929385,1754614245611,-400.0,0.0002,2]
[377929387,1754614245621,-637.04,0.0002,2]
[377929389,1754614245631,-1872.75,0.0002,2]
[377929391,1754614245641,-809.38,0.0002,2]
[377929393,1754614245651,-739.13,0.0002,2]
[377929395,1754614245661,-400.0,0.0002,2]
[377929397,1754614245671,-518.6,0.0002,2]
[377929399,1754614245681,-400.0,0.0002,2]
[377929401,1754614245691,-400.0,0.0002,2]
[377929403,1754614245701,-400.0,0.0002,2]
[377929405,1754614245711,-400.0,0.0002,2]
[377929407,1754614245721,-400.0,0.0002,2]
[377929409,1754614245731,-400.0,0.0002,2]
[377929411,1754614245741,-252.44,0.0002,2]
[377929412,1754614245752,-400.0,0.0002,2]
[377929413,1754614245762,-400.0,0.0002,2]
[377929414,1754614245772,-688.92,0.0002,2]
[377929415,1754614245781,-400.0,0.0002,2]
[377929417,1754614245791,-724.63,0.0002,2]
[377929419,1754614245801,-400.0,0.0002,2]
[377929421,1754614245811,-400.0,0.0002,2]
[377929423,1754614245821,-2478.01,0.0002,2]
[377929425,1754614245830,-1838.62,0.0002,2]
[377929428,1754614245842,-209.51,0.0002,2]
[377929430,1754614245855,-633.66,0.0002,2]
[377929432,1754614245866,-400.0,0.0002,2]
[377929434,1754614245875,-2866.87,0.0002,2]
[377929436,1754614245885,-400.0,0.0002,2]
[377929438,1754614245895,-400.0,0.0002,2]
[377929440,1754614245905,-995.05,0.0002,2]
[377929442,1754614245915,-400.0,0.0002,2]
[377929444,1754614245926,-569.3,0.0002,2]
[377929446,1754614245936,-400.0,0.0002,2]
[377929449,1754614245947,-627.88,0.0002,2]
[377929451,1754614245957,-400.0,0.0002,2]
[377929454,1754614245968,-400.0,0.0002,2]
[377929457,1754614245978,-400.0,0.0002,2]
[377929459,1754614245988,-400.0,0.0002,2]
[377929462,1754614245998,-1915.69,0.0002,2]
[377929465,1754614246012,-400.0,0.0002,2]
[377929468,1754614246023,-1024.44,0.0002,2]
[377929471,1754614246034,-452.77,0.0002,2]
[377929473,1754614246045,-755.68,0.0002,2]
[377929475,1754614246055,-400.0,0.0002,2]
[377929477,1754614246066,-400.0,0.0002,2]
[377929479,1754614246077,-500.0,0.00020044,2]
[377929481,1754614246087,-2500.0,0.00020044,2]
[377929483,1754614246097,-1000.0,0.00020044,4]
[377929485,1754614246110,-250.0,0.00020044,2]
[377929487,1754614246120,-150.0,0.00020044,2]
[377929489,1754614246129,-169.29,0.00020063,2]
[377929492,1754614246139,-175.42870853,0.00020247,4]
[377929494,1754614246154,-150.0,0.00020247,4]
[377929496,1754614246164,-234.24107676,0.00020247,4]
[377929498,1754614246174,-255.82089424,0.00020247,4]
[377929501,1754614246185,-270.05132164,0.00020247,4]
[377929503,1754614246201,-1500.0,0.00020268,2]
[377929505,1754614246210,-150.8,0.00020273,2]
[377929507,1754614246221,-400.0,0.00020273,2]
[377929509,1754614246231,-400.0,0.00020273,2]
[377929511,1754614246240,-400.0,0.00020273,2]
[377929513,1754614246251,-400.0,0.00020273,2]
[377929515,1754614246265,-1357.58,0.00020273,2]
[377929517,1754614246275,-469.15967668,0.00020273,2]
[377929519,1754614246285,-400.0,0.00020273,2]
[377929521,1754614246295,-1208.7,0.00020273,2]
[377929523,1754614246305,-400.0,0.00020273,2]
[377929525,1754614246318,-571.32,0.00020273,2]
[377929527,1754614246328,-400.0,0.00020273,2]
[377929529,1754614246338,-722.94,0.00020273,2]
[377929531,1754614246347,-400.0,0.00020273,2]
[377929533,1754614246357,-400.0,0.00020273,2]
[377929535,1754614246367,-400.0,0.00020273,2]
[377929537,1754614246377,-440.35,0.00020273,2]
[377929539,1754614246386,-400.0,0.00020273,2]
[377929541,1754614246397,-400.0,0.00020273,2]
[377929543,1754614246407,-2803.03,0.00020273,2]
[377929546,1754614246420,-649.34,0.00020273,2]
[377929548,1754614246429,-1112.97,0.00020273,2]
[377929550,1754614246439,-1702.91,0.00020273,2]
[377929552,1754614246449,-400.0,0.00020273,2]
[377929554,1754614246459,-563.63,0.00020273,2]
[377929556,1754614246469,-400.0,0.00020273,2]
[377929558,1754614246479,-535.07,0.00020273,2]
[377929560,1754614246488,-412.44,0.00020273,2]
[377929562,1754614246498,-1496.19,0.00020273,2]
[377929564,1754614246509,-798.53,0.00020273,2]
[377929566,1754614246519,-341.64633723,0.00020273,2]
[377929568,1754614246528,-636.33,0.00020273,2]
[377929570,1754614246538,-400.0,0.00020273,2]
[377929572,1754614246547,-400.0,0.00020273,2]
[377929574,1754614246557,-400.0,0.00020273,2]
[377929576,1754614246567,-400.0,0.00020273,2]
[377929578,1754614246577,-400.0,0.00020273,2]
[377929580,1754614246587,-501.71,0.00020273,2]
[377929582,1754614246597,-1301.51,0.00020273,2]
[377929584,1754614246606,-400.0,0.00020273,2]
[377929586,1754614246617,-400.0,0.00020273,2]
[377929588,1754614246627,-400.0,0.00020273,2]
[377929590,1754614246637,-1160.41,0.00020273,2]
[377929592,1754614246647,-502.75,0.00020273,2]
[377929594,1754614246657,-400.0,0.00020273,2]
[377929596,1754614246666,-400.0,0.00020273,2]
[377929598,1754614246676,-400.0,0.00020273,2]
[377929600,1754614246686,-648.77,0.00020273,2]
[377929602,1754614246696,-400.0,0.00020273,2]
[377929604,1754614246706,-400.0,0.00020273,2]
[377929606,1754614246716,-1559.58,0.00020273,2]
[377929608,1754614246725,-1110.84,0.00020273,2]
[377929610,1754614246735,-1082.24,0.00020273,2]
[377929612,1754614246745,-672.61,0.00020273,2]
[377929614,1754614246757,-738.48,0.00020273,2]
[377929616,1754614246766,-400.0,0.00020273,2]
[377929618,1754614246776,-2850.84,0.00020273,2]
[377929620,1754614246786,-1783.35,0.00020273,2]
[377929622,1754614246796,-819.83,0.00020273,2]
[377929625,1754614246806,-1144.25,0.00020273,2]
[377929627,1754614246816,-400.0,0.00020273,2]
[377929629,1754614246825,-400.0,0.00020273,2]
[377929631,1754614246835,-400.0,0.00020273,2]
[377929633,1754614246845,-1207.97,0.00020273,2]
[377929635,1754614246855,-263.11860704,0.00020273,2]
[377929637,1754614246865,-774.82,0.00020273,2]
[377929639,1754614246875,-400.0,0.00020273,2]
[377929641,1754614246885,-400.0,0.00020273,2]
[377929643,1754614246894,-400.0,0.00020273,2]
[377929645,1754614246904,-400.0,0.00020273,2]
[377929647,1754614246914,-637.04,0.00020273,2]
[377929649,1754614246925,-400.0,0.00020273,2]
[377929651,1754614246934,-809.38,0.00020273,2]
[377929653,1754614246944,-1872.75,0.00020273,2]
[377929655,1754614246956,-739.13,0.00020273,2]
[377929657,1754614246967,-400.0,0.00020273,2]
[377929659,1754614246977,-518.6,0.00020273,2]
[377929661,1754614246987,-400.0,0.00020273,2]
[377929663,1754614246997,-400.0,0.00020273,2]
[377929666,1754614247010,-400.0,0.00020273,2]
[377929668,1754614247021,-435.90301173,0.00020273,2]
[377929670,1754614247032,-3096.84,0.00020273,2]
[377929671,1754614247043,-436.38,0.00020273,2]
[377929674,1754614247054,-400.0,0.00020273,2]
[377929675,1754614247065,-400.0,0.00020273,2]
[377929677,1754614247076,-400.0,0.00020273,2]
[377929679,1754614247086,-400.0,0.00020273,2]
[377929681,1754614247097,-400.0,0.00020273,2]
[377929683,1754614247108,-688.92,0.00020273,2]
[377929685,1754614247119,-400.0,0.00020273,2]
[377929687,1754614247129,-724.63,0.00020273,2]
[377929689,1754614247140,-400.0,0.00020273,2]
[377929691,1754614247155,-400.0,0.00020273,2]
[377929694,1754614247166,-400.0,0.00020273,2]
[377929695,1754614247176,-400.0,0.00020273,2]
[377929698,1754614247187,-400.0,0.00020273,2]
[377929700,1754614247199,-400.0,0.00020273,2]
[377929702,1754614247209,-400.0,0.00020273,2]
[377929704,1754614247220,-2478.01,0.00020273,2]
[377929706,1754614247232,-1838.62,0.00020273,2]
[377929707,1754614247244,-717.49,0.00020273,2]
[377929709,1754614247256,-791.17,0.00020273,2]
[377929711,1754614247267,-453.61,0.00020273,2]
[377929714,1754614247279,-743.0,0.00020273,2]
[377929716,1754614247290,-2279.55,0.00020273,2]
[377929718,1754614247301,-400.0,0.00020273,2]
[377929719,1754614247311,-833.52,0.00020273,2]
[377929730,1754614247413,-1092.65,0.00020273,2]
[377929732,1754614247423,-400.0,0.00020273,2]
[377929734,1754614247434,-633.66,0.00020273,2]
[377929736,1754614247443,-1210.68,0.00020273,2]
[377929738,1754614247453,-400.0,0.00020273,2]
[377929740,1754614247462,-900.29,0.00020273,2]
[377929742,1754614247472,-400.0,0.00020273,2]
[377929744,1754614247482,-757.08,0.00020273,2]
[377929746,1754614247492,-518.0,0.00020273,2]
[377929748,1754614247501,-400.0,0.00020273,2]
[377929750,1754614247513,-400.0,0.00020273,2]
[377929752,1754614247522,-602.93,0.00020273,2]
[377929754,1754614247533,-1933.78,0.00020273,2]
[377929756,1754614247543,-400.0,0.00020273,2]
[377929758,1754614247554,-400.0,0.00020273,2]
[377929760,1754614247563,-541.11,0.00020273,2]
[377929762,1754614247574,-411.24,0.00020273,2]
[377929764,1754614247585,-400.0,0.00020273,2]
[377929766,1754614247595,-2866.87,0.00020273,2]
[377929768,1754614247604,-400.0,0.00020273,2]
[377929770,1754614247614,-400.0,0.00020273,2]
[377929772,1754614247623,-1218.55,0.00020273,2]
[377929774,1754614247634,-400.0,0.00020273,2]
[377929776,1754614247643,-400.0,0.00020273,2]
[377929778,1754614247652,-1023.23,0.00020273,2]
[377929780,1754614247662,-400.0,0.00020273,2]
[377929782,1754614247672,-400.0,0.00020273,2]
[377929784,1754614247681,-400.0,0.00020273,2]
[377929786,1754614247690,-476.399191,0.00020273,2]
[377929788,1754614247700,-995.05,0.00020273,2]
[377929790,1754614247709,-271.57,0.00020273,2]
[377929792,1754614247718,-1397.65,0.00020273,2]
[377929794,1754614247728,-400.0,0.00020273,2]
[377929796,1754614247738,-514.11444627,0.00020273,2]
[377929798,1754614247748,-400.0,0.00020273,2]
[377929800,1754614247760,-400.0,0.00020273,2]
[377929802,1754614247769,-400.0,0.00020273,2]
[377929804,1754614247779,-400.0,0.00020273,2]
[377929806,1754614247789,-440.38,0.00020273,2]
[377929808,1754614247798,-569.3,0.00020273,2]
[377929809,1754614247808,-1429.25,0.00020273,2]
[377929812,1754614247817,-1014.96,0.00020273,2]
[377929813,1754614247827,-400.0,0.00020273,2]
[377929815,1754614247837,-174.23,0.00020273,2]
[377929817,1754614247847,-627.88,0.00020273,2]
[377929819,1754614247856,-400.0,0.00020273,2]
[377929821,1754614247866,-400.0,0.00020273,2]
[377929823,1754614247876,-400.0,0.00020273,2]
[377929825,1754614247885,-1063.03,0.00020273,2]
[377929827,1754614247895,-536.63,0.00020273,2]
[377929829,1754614247905,-400.0,0.00020273,2]
[377929831,1754614247915,-400.0,0.00020273,2]
[377929834,1754614247925,-400.0,0.00020273,2]
[377929836,1754614247937,-1603.28,0.00020273,2]
[377929838,1754614247947,-400.0,0.00020273,2]
[377929840,1754614247957,-400.0,0.00020273,2]
[377929842,1754614247967,-400.0,0.00020273,2]
[377929844,1754614247976,-1915.69,0.00020273,2]
[377929846,1754614247986,-1163.02,0.00020273,2]
[377929848,1754614247996,-400.0,0.00020273,2]
[377929850,1754614248009,-481.01,0.00020273,2]
[377929852,1754614248020,-400.0,0.00020273,2]
[377929854,1754614248030,-400.0,0.00020273,2]
[377929856,1754614248041,-973.9,0.00020273,2]
[377929858,1754614248051,-1809.74,0.00020273,2]
[377929860,1754614248062,-175.652791,0.00020273,2]
[377929862,1754614248073,-899.62,0.00020273,2]
[377929864,1754614248084,-960.68,0.00020273,2]
[377929866,1754614248094,-777.43,0.00020273,2]
[377929868,1754614248104,-272.2,0.00020273,2]
[377929870,1754614248115,-400.0,0.00020273,2]
[377929872,1754614248125,-400.0,0.00020273,2]
[377929874,1754614248135,-348.35449566,0.00020273,2]
[377929876,1754614248147,-1000.0,0.00020273,2]
[377929878,1754614248159,-1024.44,0.00020273,2]
[377929880,1754614248169,-400.0,0.00020273,2]
[377929882,1754614248179,-715.39,0.00020273,2]
[377929884,1754614248191,-3151.2,0.00020273,2]
[377929886,1754614248201,-400.0,0.00020273,2]
[377929888,1754614248210,-715.1,0.00020273,2]
[377929890,1754614248220,-400.0,0.00020273,2]
[377929892,1754614248230,-400.0,0.00020273,2]
[377929894,1754614248240,-452.77,0.00020273,2]
[377929896,1754614248250,-400.0,0.00020273,2]
[377929898,1754614248262,-1570.29,0.00020273,2]
[377929900,1754614248272,-565.95,0.00020273,2]
[377929902,1754614248282,-755.68,0.00020273,2]
[377929904,1754614248291,-451.58,0.00020273,2]
[377929906,1754614248301,-400.0,0.00020273,2]
[377929908,1754614248311,-400.0,0.00020273,2]
[377929910,1754614248321,-786.14,0.00020273,2]
[377929912,1754614248330,-400.0,0.00020273,2]
[377929914,1754614248340,-666.42,0.00020273,2]
[377929916,1754614248350,-1433.09,0.00020273,2]
[377929918,1754614248359,-1047.76,0.00020273,2]
[377929920,1754614248368,-400.0,0.00020273,2]
[377929922,1754614248378,-400.0,0.00020273,2]
[377929924,1754614248388,-400.0,0.00020273,2]
[377929926,1754614248397,-391.62,0.00020273,2]
[377929928,1754614248407,-1000.0,0.00020321,2]
[377929930,1754614248416,-1000.0,0.00020521,2]
[377929932,1754614248425,-400.0,0.00020547,2]
[377929934,1754614248435,-400.0,0.00020547,2]
[377929936,1754614248445,-400.0,0.00020547,2]
[377929938,1754614248454,-400.0,0.00020547,2]
[377929940,1754614248463,-1357.58,0.00020547,2]
[377929942,1754614248472,-400.0,0.00020547,2]
[377929943,1754614248483,-1208.7,0.00020547,2]
[377929945,1754614248493,-400.0,0.00020547,2]
[377929948,1754614248504,-571.32,0.00020547,2]
[377929949,1754614248514,-270.08287259,0.00020547,2]
[377929951,1754614248524,-722.94,0.00020547,2]
[377929954,1754614248534,-400.0,0.00020547,2]
[377929955,1754614248543,-400.0,0.00020547,2]
[377929957,1754614248553,-400.0,0.00020547,2]
[377929959,1754614248563,-440.35,0.00020547,2]
[377929961,1754614248572,-482.2,0.00020547,2]
[377929963,1754614248583,-400.0,0.00020547,2]
[377929965,1754614248592,-2803.03,0.00020547,2]